fUST/lending_fUST_20250607
["ID","MTS","AMOUNT","RATE_DAILY","PERIOD"]
[364826799,1749261039736,-396.12444723,0.00019615,2]
[364826800,1749261039746,-468.52959106,0.00019615,2]
[364826801,1749261039755,-495.56324864,0.00019615,2]
[364826803,1749261039766,-461.75927457,0.00019615,2]
[364826804,1749261039775,-450.82305805,0.00019615,2]
[364826805,1749261039786,-440.0,0.00019615,2]
[364826806,1749261039795,-440.0,0.00019617,2]
[364826808,1749261039815,-101.77451638,0.00019617,2]
[364826818,1749261040027,-411.31626889,0.00019339,2]
[364826959,1749261043234,-166.09004887,0.0001924,2]
[364826960,1749261043245,-28.68373111,0.00019339,2]
[364826961,1749261043254,-432.11377262,0.0001934,2]
[364826962,1749261043264,-190.9524474,0.0001934,2]
[364826963,1749261043276,-229.0475526,0.0001934,2]
[364826964,1749261043286,-440.0,0.00019341,2]
[364826965,1749261043296,-420.0,0.00019341,2]
[364826966,1749261043306,-390.0,0.00019613,2]
[364826967,1749261043316,-440.0,0.00019615,2]
[364826968,1749261043326,-389.31749782,0.00019617,2]
[364826969,1749261043335,-456.51236841,0.00019617,2]
[364826970,1749261043345,-464.19836356,0.00019617,2]
[364826972,1749261043354,-440.0,0.00019617,2]
[364826975,1749261043363,-452.9611422,0.00019617,2]
[364826998,1749261046291,-440.0,0.00019341,2]
[364827000,1749261046301,-447.90944378,0.00019343,2]
[364827001,1749261046311,-10.78447478,0.00019617,2]
[364827002,1749261046321,-440.0,0.00019617,2]
[364827003,1749261046331,-449.30842851,0.00019617,2]
[364827004,1749261046341,-674.92,0.00019617,2]
[364827005,1749261046351,-440.0,0.00019617,2]
[364827006,1749261046360,-237.07807321,0.00019621,2]
[364827007,1749261046370,-433.72897381,0.00019621,2]
[364827008,1749261046381,-445.33163909,0.00019621,2]
[364827009,1749261046392,-445.65391828,0.00019621,2]
[364827010,1749261046402,-444.46043114,0.00019621,2]
[364827011,1749261046411,-427.2629587,0.00019621,2]
[364827012,1749261046420,-455.26443869,0.00019621,2]
[364827013,1749261046430,-443.55056912,0.00019621,2]
[364827014,1749261046439,-446.01932694,0.00019621,2]
[364827015,1749261046448,-454.16265864,0.00019621,2]
[364827016,1749261046457,-37.85234017,0.00019621,2]
[364827017,1749261046498,-543.05789339,0.00019621,2]
[364827018,1749261046508,-450.65339907,0.00019621,2]
[364827019,1749261046517,-443.42175315,0.00019621,2]
[364827020,1749261046526,-447.84103979,0.00019621,2]
[364827021,1749261046537,-454.001554,0.00019621,2]
[364827022,1749261046549,-445.35558027,0.00019621,2]
[364827023,1749261046558,-443.25842984,0.00019621,2]
[364827024,1749261046568,-444.51472209,0.00019621,2]
[364827025,1749261046577,-308.16271416,0.00019887,2]
[364827041,1749261932248,289.946188,0.00013699,2]
[364827044,1749262031635,-3557.21255226,0.000183,2]
[364827045,1749262052184,-855.78744774,0.000183,2]
[364827046,1749262052205,-996.9670205,0.00018315,2]
[364827047,1749262052227,-1330.6300335,0.00018315,2]
[364827048,1749262052249,-300.0,0.00018561,2]
[364827049,1749262052272,-300.0,0.00018561,2]
[364827050,1749262052293,-433.25787623,0.00018562,2]
[364827072,1749262232419,-862.34587427,0.00018562,2]
[364827073,1749262232429,-3365.72955498,0.00019,2]
[364827074,1749262232439,-300.0,0.00019234,2]
[364827075,1749262232448,-440.0,0.00019235,2]
[364827076,1749262232459,-440.0,0.00019235,2]
[364827077,1749262232470,-401.21898566,0.00019235,2]
[364827079,1749262232480,-440.0,0.00019235,2]
[364827081,1749262232490,-440.0,0.00019235,2]
[364827082,1749262232500,-289.91076651,0.00019235,2]
[364827083,1749262232510,-440.0,0.00019235,2]
[364827084,1749262232520,-401.57567986,0.00019235,2]
[364827085,1749262232530,-401.43577059,0.00019235,2]
[364827086,1749262232540,-402.05624556,0.00019235,2]
[364827087,1749262232551,-403.79150564,0.00019235,2]
[364827088,1749262232561,-500.0,0.00019235,2]
[364827089,1749262232573,-1224.0022549,0.00019235,2]
[364827090,1749262232583,-500.0,0.00019235,2]
[364827092,1749262232593,-1224.0022549,0.00019235,2]
[364827094,1749262232603,-1224.0022549,0.00019235,2]
[364827096,1749262232614,-500.0,0.00019235,2]
[364827098,1749262232625,-1224.0022549,0.00019235,2]
[364827099,1749262232635,-500.0,0.00019235,2]
[364827101,1749262232644,-1224.0022549,0.00019235,2]
[364827102,1749262232654,-500.0,0.00019235,2]
[364827103,1749262232669,-1224.0022549,0.00019235,2]
[364827104,1749262232679,-500.0,0.00019235,2]
[364827105,1749262232688,-1224.0022549,0.00019235,2]
[364827106,1749262232699,-500.0,0.00019235,2]
[364827107,1749262232708,-1224.0022549,0.00019235,2]
[364827108,1749262232719,-500.0,0.00019235,2]
[364827109,1749262232728,-1224.0022549,0.00019235,2]
[364827110,1749262232738,-500.0,0.00019235,2]
[364827111,1749262232748,-1224.0022549,0.00019235,2]
[364827112,1749262232758,-500.0,0.00019235,2]
[364827113,1749262232767,-1224.0022549,0.00019235,2]
[364827114,1749262232776,-500.0,0.00019235,2]
[364827115,1749262232786,-1224.0022549,0.00019235,2]
[364827116,1749262232797,-500.0,0.00019235,2]
[364827117,1749262232806,-1224.0022549,0.00019235,2]
[364827118,1749262232816,-500.0,0.00019235,2]
[364827119,1749262232826,-1224.0022549,0.00019235,2]
[364827120,1749262232836,-500.0,0.00019235,2]
[364827121,1749262232846,-1224.0022549,0.00019235,2]
[364827122,1749262232856,-500.0,0.00019235,2]
[364827123,1749262232866,-1224.0022549,0.00019235,2]
[364827124,1749262232876,-500.0,0.00019235,2]
[364827125,1749262232886,-1224.0022549,0.00019235,2]
[364827126,1749262232897,-500.0,0.00019235,2]
[364827127,1749262232908,-1224.0022549,0.00019235,2]
[364827128,1749262232918,-500.0,0.00019235,2]
[364827129,1749262232929,-1224.0022549,0.00019235,2]
[364827130,1749262232938,-500.0,0.00019235,2]
[364827131,1749262232948,-500.0,0.00019235,2]
[364827132,1749262232959,-500.0,0.00019235,2]
[364827133,1749262232969,-1224.0022549,0.00019235,2]
[364827134,1749262232978,-500.0,0.00019235,2]
[364827135,1749262232987,-1224.0022549,0.00019235,2]
[364827136,1749262232996,-500.0,0.00019235,2]
[364827137,1749262233007,-1224.0022549,0.00019235,2]
[364827138,1749262233017,-500.0,0.00019235,2]
[364827139,1749262233027,-1224.0022549,0.00019235,2]
[364827140,1749262233037,-500.0,0.00019235,2]
[364827141,1749262233047,-1224.0022549,0.00019235,2]
[364827142,1749262233057,-500.0,0.00019235,2]
[364827143,1749262233067,-1224.0022549,0.00019235,2]
[364827144,1749262233077,-1224.0022549,0.00019235,2]
[364827145,1749262233088,-500.0,0.00019235,2]
[364827146,1749262233098,-500.0,0.00019235,2]
[364827147,1749262233108,-1224.0022549,0.00019235,2]
[364827148,1749262233118,-1224.0022549,0.00019235,2]
[364827149,1749262233127,-500.0,0.00019235,2]
[364827150,1749262233137,-1224.0022549,0.00019235,2]
[364827151,1749262233148,-500.0,0.00019235,2]
[364827152,1749262233158,-1224.0022549,0.00019235,2]
[364827153,1749262233168,-500.0,0.00019235,2]
[364827154,1749262233178,-1224.0022549,0.00019235,2]
[364827155,1749262233189,-1224.0022549,0.00019235,2]
[364827156,1749262233199,-500.0,0.00019235,2]
[364827157,1749262233209,-1224.0022549,0.00019235,2]
[364827158,1749262233219,-500.0,0.00019235,2]
[364827159,1749262233230,-500.0,0.00019235,2]
[364827160,1749262233241,-1224.0022549,0.00019235,2]
[364827161,1749262233252,-500.0,0.00019235,2]
[364827162,1749262233262,-1224.0022549,0.00019235,2]
[364827163,1749262233278,-1224.0022549,0.00019235,2]
[364827164,1749262233288,-500.0,0.00019235,2]
[364827165,1749262233299,-1224.0022549,0.00019235,2]
[364827166,1749262233311,-1224.0022549,0.00019235,2]
[364827167,1749262233322,-365.33458118,0.00019235,2]
[364827168,1749262233332,-1224.0022549,0.00019235,2]
[364827169,1749262233342,-1224.0022549,0.00019235,2]
[364827170,1749262233354,-500.0,0.00019235,2]
[364827171,1749262233365,-1224.0022549,0.00019235,2]
[364827172,1749262233375,-1224.0022549,0.00019235,2]
[364827173,1749262233386,-500.0,0.00019235,2]
[364827174,1749262233396,-1224.0022549,0.00019235,2]
[364827175,1749262233407,-1224.0022549,0.00019235,2]
[364827176,1749262233417,-1224.0022549,0.00019235,2]
[364827177,1749262233427,-1224.0022549,0.00019235,2]
[364827178,1749262233437,-1224.0022549,0.00019235,2]
[364827179,1749262233448,-1224.0022549,0.00019235,2]
[364827180,1749262233458,-1224.0022549,0.00019235,2]
[364827181,1749262233469,-1224.0022549,0.00019235,2]
[364827182,1749262233479,-1224.0022549,0.00019235,2]
[364827183,1749262233489,-1224.0022549,0.00019235,2]
[364827184,1749262233498,-1224.0022549,0.00019235,2]
[364827185,1749262233508,-1224.0022549,0.00019235,2]
[364827186,1749262233518,-1224.0022549,0.00019235,2]
[364827187,1749262233529,-1224.0022549,0.00019235,2]
[364827188,1749262233539,-1224.0022549,0.00019235,2]
[364827189,1749262233549,-1224.0022549,0.00019235,2]
[364827190,1749262233559,-1224.0022549,0.00019235,2]
[364827191,1749262233569,-1224.0022549,0.00019235,2]
[364827192,1749262233579,-1224.0022549,0.00019235,2]
[364827193,1749262233589,-1224.0022549,0.00019235,2]
[364827194,1749262233599,-1224.0022549,0.00019235,2]
[364827195,1749262233610,-1224.0022549,0.00019235,2]
[364827196,1749262233620,-1224.0022549,0.00019235,2]
[364827197,1749262233630,-1183.20217975,0.00019235,2]
[364827198,1749262233640,-1183.20217975,0.00019235,2]
[364827199,1749262233649,-1183.20217975,0.00019235,2]
[364827200,1749262233659,-1183.20217975,0.00019235,2]
[364827201,1749262233669,-1183.20217975,0.00019235,2]
[364827202,1749262233679,-1183.20217975,0.00019235,2]
[364827203,1749262233688,-1183.20217975,0.00019235,2]
[364827204,1749262233698,-1183.20217975,0.00019235,2]
[364827205,1749262233707,-1183.20217975,0.00019235,2]
[364827206,1749262233717,-1183.20217975,0.00019235,2]
[364827207,1749262233728,-1183.20217975,0.00019235,2]
[364827208,1749262233739,-1183.20217975,0.00019235,2]
[364827209,1749262233750,-1183.20217975,0.00019235,2]
[364827210,1749262233760,-1183.20217975,0.00019235,2]
[364827211,1749262233770,-1183.20217975,0.00019235,2]
[364827212,1749262233781,-1183.20217975,0.00019235,2]
[364827213,1749262233790,-1183.20217975,0.00019235,2]
[364827214,1749262233801,-1183.20217975,0.00019235,2]
[364827215,1749262233810,-1183.20217975,0.00019235,2]
[364827216,1749262233819,-1183.20217975,0.00019235,2]
[364827217,1749262233830,-1183.20217975,0.00019235,2]
[364827218,1749262233840,-1183.20217975,0.00019235,2]
[364827219,1749262233851,-1183.20217975,0.00019235,2]
[364827220,1749262233861,-1183.20217975,0.00019235,2]
[364827221,1749262233871,-1183.20217975,0.00019235,2]
[364827222,1749262233881,-1183.20217975,0.00019235,2]
[364827223,1749262233891,-1183.20217974,0.00019235,2]
[364827224,1749262233901,-440.0,0.00019236,2]
[364827225,1749262233911,-611.4,0.00019236,2]
[364827226,1749262233921,-494.27378541,0.00019237,2]
[364827227,1749262233932,-448.19542333,0.00019238,2]
[364827228,1749262233943,-430.0,0.00019238,2]
[364827229,1749262233953,-440.0,0.00019238,2]
[364827230,1749262233963,-680.77,0.00019238,2]
[364827231,1749262233973,-846.26,0.00019238,2]
[364827232,1749262233983,-410.0,0.00019238,2]
[364827233,1749262233994,-440.0,0.00019238,2]
[364827234,1749262234005,-440.0,0.00019238,2]
[364827235,1749262234016,-440.0,0.00019238,2]
[364827236,1749262234026,-440.0,0.00019238,2]
[364827237,1749262234035,-440.0,0.00019238,2]
[364827238,1749262234046,-494.99,0.00019238,2]
[364827239,1749262234055,-440.0,0.00019238,2]
[364827240,1749262234066,-440.0,0.00019238,2]
[364827241,1749262234077,-440.0,0.00019238,2]
[364827242,1749262234241,-440.0,0.00019238,2]
[364827243,1749262234252,-440.0,0.00019238,2]
[364827244,1749262234263,-440.0,0.00019238,2]
[364827245,1749262234277,-440.0,0.00019238,2]
[364827246,1749262234287,-440.0,0.00019238,2]
[364827247,1749262234297,-440.0,0.00019238,2]
[364827248,1749262234308,-440.0,0.00019238,2]
[364827249,1749262234320,-446.14920417,0.00019238,2]
[364827250,1749262234330,-440.0,0.00019238,2]
[364827251,1749262234341,-440.0,0.00019238,2]
[364827252,1749262234352,-440.0,0.00019238,2]
[364827253,1749262234362,-440.0,0.00019238,2]
[364827254,1749262234373,-277.83627294,0.0001924,2]
[364827255,1749262234384,-445.60027456,0.0001924,2]
[364827256,1749262234394,-440.0,0.0001924,2]
[364827257,1749262234404,-459.01231833,0.0001924,2]
[364827258,1749262234414,-448.52999489,0.0001924,2]
[364827259,1749262234424,-294.73191898,0.0001924,2]
[364827260,1749262234434,-448.54835393,0.0001924,2]
[364827261,1749262234444,-440.0,0.0001924,2]
[364827262,1749262234454,-440.0,0.0001924,2]
[364827263,1749262234465,-448.20857893,0.0001924,2]
[364827264,1749262234474,-445.62874497,0.0001924,2]
[364827265,1749262234483,-446.92883562,0.0001924,2]
[364827266,1749262234492,-440.0,0.0001924,2]
[364827267,1749262234504,-500.0,0.0001924,2]
[364827268,1749262234514,-440.0,0.0001924,2]
[364827269,1749262234523,-440.0,0.0001924,2]
[364827270,1749262234534,-427.23434641,0.0001924,2]
[364827271,1749262234543,-431.65528996,0.0001924,2]
[364827272,1749262234553,-440.0,0.0001924,2]
[364827273,1749262234563,-440.0,0.0001924,2]
[364827274,1749262234573,-440.0,0.0001924,2]
[364827275,1749262234583,-440.0,0.0001924,2]
[364827276,1749262234592,-430.15596733,0.0001924,2]
[364827277,1749262234603,-440.0,0.0001924,2]
[364827278,1749262234612,-462.26980743,0.0001924,2]
[364827279,1749262234622,-411.75023876,0.0001924,2]
[364827280,1749262234633,-422.09517371,0.0001924,2]
[364827281,1749262234642,-426.95360167,0.0001924,2]
[364827282,1749262234652,-440.0,0.0001924,2]
[364827283,1749262234661,-440.0,0.0001924,2]
[364827284,1749262234671,-433.15098993,0.0001924,2]
[364827285,1749262234681,-529.04482239,0.0001924,2]
[364827286,1749262234690,-523.42953058,0.0001924,2]
[364827287,1749262234700,-440.0,0.0001924,2]
[364827288,1749262234710,-433.41677075,0.0001924,2]
[364827289,1749262234720,-440.0,0.0001924,2]
[364827290,1749262234729,-440.0,0.0001924,2]
[364827291,1749262234739,-440.0,0.0001924,2]
[364827292,1749262234750,-440.0,0.0001924,2]
[364827293,1749262234759,-440.0,0.0001924,2]
[364827294,1749262234769,-435.17034596,0.0001924,2]
[364827295,1749262234779,-401.08107805,0.0001924,2]
[364827296,1749262234789,-440.0,0.0001924,2]
[364827297,1749262234798,-440.0,0.0001924,2]
[364827298,1749262234808,-401.17040658,0.0001924,2]
[364827299,1749262234817,-440.0,0.0001924,2]
[364827300,1749262234827,-440.0,0.0001924,2]
[364827301,1749262234837,-440.0,0.0001924,2]
[364827302,1749262234847,-402.72830568,0.0001924,2]
[364827303,1749262234856,-440.0,0.0001924,2]
[364827304,1749262234866,-400.49511494,0.0001924,2]
[364827305,1749262234876,-440.0,0.0001924,2]
[364827306,1749262234888,-440.0,0.0001924,2]
[364827307,1749262234898,-401.14098147,0.0001924,2]
[364827308,1749262234910,-440.0,0.0001924,2]
[364827309,1749262234921,-440.0,0.0001924,2]
[364827310,1749262234933,-437.47802308,0.0001924,2]
[364827311,1749262234942,-434.1899756,0.0001924,2]
[364827312,1749262234952,-441.03866977,0.0001924,2]
[364827313,1749262234961,-433.39837626,0.0001924,2]
[364827314,1749262234971,-434.89114875,0.0001924,2]
[364827315,1749262234981,-440.0,0.0001924,2]
[364827316,1749262234991,-440.0,0.0001924,2]
[364827317,1749262235001,-440.0,0.0001924,2]
[364827318,1749262235010,-440.0,0.0001924,2]
[364827319,1749262235019,-440.0,0.0001924,2]
[364827320,1749262235029,-279.15347199,0.0001924,2]
[364827321,1749262235038,-440.0,0.0001924,2]
[364827322,1749262235048,-440.0,0.0001924,2]
[364827323,1749262235057,-440.0,0.0001924,2]
[364827324,1749262235067,-440.0,0.0001924,2]
[364827325,1749262235076,-440.0,0.0001924,2]
[364827326,1749262235086,-440.0,0.0001924,2]
[364827327,1749262235095,-440.0,0.0001924,2]
[364827328,1749262235105,-401.19865974,0.0001924,2]
[364827329,1749262235115,-440.0,0.0001924,2]
[364827330,1749262235125,-440.0,0.0001924,2]
[364827331,1749262235134,-401.21376246,0.0001924,2]
[364827332,1749262235144,-411.97185815,0.0001924,2]
[364827333,1749262235154,-440.0,0.0001924,2]
[364827334,1749262235163,-440.0,0.0001924,2]
[364827335,1749262235173,-341.40684913,0.0001924,2]
[364827336,1749262235183,-440.0,0.0001924,2]
[364827337,1749262235193,-400.71248693,0.0001924,2]
[364827338,1749262235204,-440.0,0.0001924,2]
[364827339,1749262235215,-440.0,0.0001924,2]
[364827340,1749262235225,-504.79732277,0.0001924,2]
[364827341,1749262235236,-401.00586286,0.0001924,2]
[364827342,1749262235246,-440.0,0.0001924,2]
[364827343,1749262235256,-440.0,0.0001924,2]
[364827344,1749262235267,-437.80916846,0.0001924,2]
[364827345,1749262235282,-187.57259449,0.0001924,2]
[364827346,1749262235291,-440.0,0.0001924,2]
[364827347,1749262235301,-440.0,0.0001924,2]
[364827348,1749262235312,-440.0,0.0001924,2]
[364827349,1749262235324,-440.0,0.0001924,2]
[364827350,1749262235334,-440.0,0.0001924,2]
[364827351,1749262235345,-440.0,0.0001924,2]
[364827352,1749262235355,-440.0,0.0001924,2]
[364827353,1749262235364,-440.0,0.0001924,2]
[364827354,1749262235375,-440.0,0.0001924,2]
[364827355,1749262235386,-440.0,0.0001924,2]
[364827356,1749262235397,-500.0,0.0001924,2]
[364827357,1749262235407,-435.52396648,0.0001924,2]
[364827358,1749262235416,-440.0,0.0001924,2]
[364827359,1749262235427,-440.0,0.0001924,2]
[364827360,1749262235437,-435.91991515,0.0001924,2]
[364827361,1749262235447,-435.39655312,0.0001924,2]
[364827362,1749262235456,-436.34099417,0.0001924,2]
[364827363,1749262235466,-440.0,0.0001924,2]
[364827364,1749262235476,-453.60724566,0.0001924,2]
[364827365,1749262235485,-440.0,0.0001924,2]
[364827366,1749262235495,-440.0,0.0001924,2]
[364827367,1749262235504,-440.0,0.0001924,2]
[364827368,1749262235514,-195.93703994,0.0001924,2]
[364827369,1749262235523,-440.0,0.0001924,2]
[364827370,1749262235535,-440.0,0.0001924,2]
[364827371,1749262235546,-440.0,0.0001924,2]
[364827372,1749262235557,-443.13201814,0.0001924,2]
[364827373,1749262235568,-440.0,0.0001924,2]
[364827374,1749262235578,-443.12533894,0.0001924,2]
[364827375,1749262235588,-539.68157283,0.0001924,2]
[364827376,1749262235598,-401.55310399,0.0001924,2]
[364827377,1749262235608,-447.35027765,0.0001924,2]
[364827378,1749262235618,-448.05525082,0.0001924,2]
[364827379,1749262235629,-442.50095546,0.0001924,2]
[364827380,1749262235639,-443.81944229,0.0001924,2]
[364827381,1749262235650,-440.0,0.0001924,2]
[364827382,1749262235660,-404.11312759,0.0001924,2]
[364827383,1749262235671,-449.70962979,0.0001924,2]
[364827384,1749262235681,-445.01658594,0.0001924,2]
[364827385,1749262235693,-442.57860672,0.0001924,2]
[364827386,1749262235704,-440.0,0.0001924,2]
[364827387,1749262235714,-440.0,0.0001924,2]
[364827388,1749262235725,-436.98022207,0.0001924,2]
[364827389,1749262235735,-446.21495258,0.0001924,2]
[364827390,1749262235745,-439.36562291,0.0001924,2]
[364827391,1749262235756,-440.0,0.0001924,2]
[364827392,1749262235767,-440.0,0.0001924,2]
[364827393,1749262235779,-401.49985058,0.0001924,2]
[364827394,1749262235790,-521.75487887,0.0001924,2]
[364827395,1749262235800,-440.0,0.0001924,2]
[364827396,1749262235812,-464.36349359,0.0001924,2]
[364827397,1749262235822,-437.83470848,0.0001924,2]
[364827398,1749262235832,-400.98980597,0.0001924,2]
[364827399,1749262235841,-439.18753643,0.0001924,2]
[364827400,1749262235851,-440.0,0.0001924,2]
[364827401,1749262235861,-440.0,0.0001924,2]
[364827402,1749262235872,-440.0,0.0001924,2]
[364827403,1749262235883,-440.0,0.0001924,2]
[364827404,1749262235893,-440.0,0.0001924,2]
[364827405,1749262235902,-449.98961411,0.0001924,2]
[364827406,1749262235912,-440.0,0.0001924,2]
[364827407,1749262235921,-440.0,0.0001924,2]
[364827408,1749262235931,-440.0,0.0001924,2]
[364827409,1749262235941,-440.0,0.0001924,2]
[364827410,1749262235950,-515.70424883,0.0001924,2]
[364827411,1749262235960,-440.0,0.0001924,2]
[364827412,1749262235970,-440.0,0.0001924,2]
[364827413,1749262235980,-391.90048002,0.0001924,2]
[364827414,1749262235990,-440.0,0.0001924,2]
[364827415,1749262236002,-1065.84,0.0001924,2]
[364827416,1749262236011,-440.0,0.0001924,2]
[364827417,1749262236021,-440.0,0.0001924,2]
[364827418,1749262236030,-440.0,0.0001924,2]
[364827419,1749262236040,-438.49878094,0.0001924,2]
[364827420,1749262236049,-23636.64958595,0.00019241,2]
[364827421,1749262236059,-151.624641,0.00019241,2]
[364827422,1749262236068,-496.86,0.00019337,3]
[364827423,1749262236078,-248.43,0.00019337,3]
[364827424,1749262236087,-745.33,0.00019337,3]
[364827425,1749262236098,-500.0,0.00019338,2]
[364827426,1749262236107,-618.93995092,0.00019338,2]
[364827427,1749262236117,-500.0,0.00019338,2]
[364827428,1749262236127,-500.0,0.00019338,2]
[364827429,1749262236136,-440.0,0.00019338,2]
[364827430,1749262236146,-440.0,0.00019338,2]
[364827431,1749262236155,-440.0,0.00019339,2]
[364827432,1749262236165,-400.0,0.00019339,2]
[364827433,1749262236175,-455.06036853,0.00019339,2]
[364827434,1749262236185,-440.0,0.00019339,2]
[364827435,1749262236195,-440.0,0.00019339,2]
[364827436,1749262236205,-455.00311913,0.00019339,2]
[364827437,1749262236216,-440.0,0.00019339,2]
[364827438,1749262236226,-432.55497637,0.00019339,2]
[364827439,1749262236235,-440.0,0.00019339,2]
[364827440,1749262236246,-420.0,0.00019339,2]
[364827441,1749262236256,-440.0,0.00019339,2]
[364827442,1749262236266,-440.0,0.00019339,2]
[364827443,1749262236281,-443.68241334,0.00019339,2]
[364827444,1749262236291,-440.0,0.00019339,2]
[364827445,1749262236301,-420.0,0.00019339,2]
[364827446,1749262236311,-440.0,0.00019339,2]
[364827447,1749262236321,-440.0,0.00019339,2]
[364827448,1749262236331,-440.0,0.00019339,2]
[364827449,1749262236341,-440.0,0.00019339,2]
[364827450,1749262236351,-440.0,0.00019339,2]
[364827451,1749262236362,-440.0,0.00019339,2]
[364827452,1749262236372,-440.0,0.00019339,2]
[364827453,1749262236382,-440.0,0.00019339,2]
[364827454,1749262236392,-500.0,0.00019339,2]
[364827455,1749262236414,-443.57739181,0.00019339,2]
[364827456,1749262236425,-433.09461863,0.00019339,2]
[364827457,1749262236436,-440.0,0.00019339,2]
[364827458,1749262236447,-440.0,0.00019339,2]
[364827459,1749262236457,-444.06002614,0.00019339,2]
[364827460,1749262236467,-437.27439333,0.00019339,2]
[364827461,1749262236478,-440.0,0.00019339,2]
[364827462,1749262236488,-440.0,0.00019339,2]
[364827463,1749262236498,-440.0,0.00019339,2]
[364827464,1749262236508,-440.0,0.00019339,2]
[364827465,1749262236518,-319.02051583,0.00019339,2]
[364827466,1749262236528,-440.0,0.00019339,2]
[364827467,1749262236537,-499.05,0.00019339,2]
[364827468,1749262236547,-424.90530465,0.00019339,2]
[364827469,1749262236558,-480.02452809,0.00019339,2]
[364827470,1749262236568,-440.0,0.00019339,2]
[364827471,1749262236578,-463.20957805,0.00019339,2]
[364827472,1749262236588,-440.0,0.00019339,2]
[364827473,1749262236598,-448.52510229,0.00019339,2]
[364827474,1749262236607,-1377.83,0.00019339,2]
[364827475,1749262236617,-440.0,0.0001934,2]
[364827476,1749262236627,-440.0,0.0001934,2]
[364827477,1749262236636,-433.4572617,0.0001934,2]
[364827478,1749262236646,-159.61727355,0.0001934,2]
[364827479,1749262236655,-500.0,0.0001934,2]
[364827480,1749262236665,-433.11885459,0.0001934,2]
[364827481,1749262236675,-440.0,0.0001934,2]
[364827482,1749262236684,-440.0,0.0001934,2]
[364827483,1749262236694,-331.96231913,0.0001934,2]
[364827484,1749262236703,-440.0,0.0001934,2]
[364827485,1749262236714,-432.53535128,0.0001934,2]
[364827486,1749262236725,-470.18694244,0.0001934,2]
[364827487,1749262236736,-436.96453772,0.0001934,2]
[364827488,1749262236746,-440.0,0.0001934,2]
[364827489,1749262236757,-434.1944289,0.0001934,2]
[364827490,1749262236767,-548.97448682,0.0001934,2]
[364827491,1749262236779,-440.0,0.0001934,2]
[364827492,1749262236792,-440.0,0.0001934,2]
[364827493,1749262236804,-440.0,0.0001934,2]
[364827494,1749262236814,-440.0,0.0001934,2]
[364827495,1749262236824,-440.0,0.0001934,2]
[364827496,1749262236835,-444.95864272,0.0001934,2]
[364827497,1749262236844,-427.76,0.0001934,2]
[364827498,1749262236854,-385.33633118,0.0001934,2]
[364827499,1749262236864,-440.0,0.0001934,2]
[364827500,1749262236873,-440.0,0.0001934,2]
[364827501,1749262236883,-390.0,0.0001934,2]
[364827502,1749262236892,-390.0,0.0001934,2]
[364827503,1749262236901,-440.0,0.0001934,2]
[364827504,1749262236911,-430.91676991,0.0001934,2]
[364827505,1749262236921,-420.0,0.0001934,2]
[364827506,1749262236931,-335.0,0.0001934,2]
[364827507,1749262236941,-427.76379918,0.0001934,2]
[364827508,1749262236950,-440.0,0.0001934,2]
[364827509,1749262236959,-440.0,0.0001934,2]
[364827510,1749262236969,-430.0,0.0001934,2]
[364827511,1749262236978,-440.0,0.0001934,2]
[364827512,1749262236988,-440.0,0.0001934,2]
[364827513,1749262236998,-460.0,0.0001934,2]
[364827514,1749262237007,-425.31978953,0.0001934,2]
[364827515,1749262237021,-350.16196044,0.0001934,2]
[364827516,1749262237031,-440.0,0.0001934,2]
[364827517,1749262237041,-413.40862504,0.0001934,2]
[364827518,1749262237051,-440.0,0.0001934,2]
[364827519,1749262237061,-430.0,0.0001934,2]
[364827520,1749262237071,-440.0,0.0001934,2]